[Event "Reykjavik Chess Congress 2018"]
[Site "Reykjavik"]
[Date "2018.01.31"]
[Round "7"]
[White "Valdimarsson, Einar"]
[Black "Ptacnikova, Lenka"]
[Result "0-1"]
[ECO "A40"]
[WhiteElo "2023"]
[BlackElo "2218"]
[Annotator "RC"]
[PlyCount "86"]
[EventDate "2018.??.??"]
[EventType "swiss"]
[EventCountry "ISL"]
[SourceTitle "playchess.com"]
[Source "ChessBase"]
[SourceQuality "1"]
[TimeControl "40/5400+30:900+30"]

1. d4 {[%emt 0:00:00]} g6 {[%emt 0:03:16]} 2. Bg5 {[%emt 0:02:56]} c5 {[%emt 0:03:18]} 3. d5 {[%emt 0:01:32]} Bg7 {[%emt 0:02:20]} 4. Nc3 {[%emt 0:01:00]} d6 {[%emt 0:02:20]} 5. e4 {[%emt 0:00:53]} a6 {[%emt 0:00:48]} 6. a4 {[%emt 0:03:18]} b6 {[%emt 0:01:21]} 7. Be2 {[%emt 0:01:42]} Nd7 {[%emt 0:01:40]} 8. Nf3 {[%emt 0:01:45]} Qc7 {[%emt 0:00:43]} 9. O-O {[%emt 0:00:26]} Rb8 {[%emt 0:00:51]} 10. Nd2 {[%emt 0:02:31]} Ngf6 {[%emt 0:08:34]} 11. f4 {[%emt 0:05:47]} O-O {[%emt 0:01:40]} 12. Kh1 {[%emt 0:00:11]} Re8 {[%emt 0:03:44]} 13. Bc4 {[%emt 0:02:43]} h6 {[%emt 0:02:18]} 14. Bh4 {[%emt 0:01:04]} Nh7 {[%emt 0:00:44]} 15. Qe2 {[%emt 0:01:24]} Ra8 {[%emt 0:11:57]} 16. Rae1 {[%emt 0:05:01]} Bxc3 {[%emt 0:04:32]} 17. bxc3 {[%emt 0:00:17]} Ndf8 {[%emt 0:04:07]} 18. e5 {[%emt 0:08:28]} Bd7 {[%emt 0:00:11]} 19. e6 {[%emt 0:11:34]} fxe6 {[%emt 0:01:19]} 20. dxe6 {[%emt 0:00:42]} Bc6 {[%emt 0:03:11]} 21. f5 {[%emt 0:02:04]} g5 {[%emt 0:00:30]} 22. Qh5 {[%emt 0:04:43]} gxh4 {[%emt 0:04:40]} 23. Qf7+ {[%emt 0:01:37]} Kh8 {[%emt 0:00:05]} 24. f6 {[%emt 0:15:50]} Nxe6 {[%emt 0:00:24]} 25. Bxe6 {[%emt 0:00:51]} Rg8 {[%emt 0:01:03]} 26. Ne4 {[%emt 0:07:23]} h3 {[%emt 0:17:14]} 27. Rf2 {[%emt 0:07:06]} hxg2+ {[%emt 0:05:09]} 28. Kg1 {[%emt 0:01:02]} Bxe4 {[%emt 0:06:52]} 29. Rxe4 {[%emt 0:01:09]} d5 {[%emt 0:00:34]} 30. Re1 {[%emt 0:06:47]} Ng5 {[%emt 0:05:42]} 31. Qh5 {[%emt 0:00:31]} exf6 {[%emt 0:00:48]} 32. Rxf6 {[%emt 0:00:56]} Rg7 {[%emt 0:03:41]} 33. Rxh6+ {[%emt 0:02:06]} Nh7 {[%emt 0:00:13]} 34. Bf5 {[%emt 0:00:31]} Qf7 {[%emt 0:00:46]} 35. Qh3 {[%emt 0:01:03]} Rf8 {[%emt 0:00:18]} 36. Rh5 {[%emt 0:00:28]} d4 {[%emt 0:00:35]} 37. Re2 {[%emt 0:00:23]} dxc3 {[%emt 0:00:24]} 38. Rxg2 {[%emt 0:00:40]} Rxg2+ {[%emt 0:00:30]} 39. Qxg2 {[%emt 0:00:28]} Rg8 {[%emt 0:00:17]} 40. Rxh7+ {[%emt 0:00:00]} Qxh7 {[%emt 0:00:10]} 41. Bxh7 {[%emt 0:01:49]} Kxh7 {[%emt 0:00:21]} 42. Qxg8+ {[%emt 0:00:30]} Kxg8 {[%emt 0:00:04]} 43. Kf2 {[%emt 0:00:05]} b5 {[%emt 0:00:24]} 0-1

[Event "Reykjavik Chess Congress 2018"]
[Site "Reykjavik"]
[Date "2018.02.04"]
[Round "8"]
[White "Ragnarsson, Dagur"]
[Black "Halldorsson, Bragi"]
[Result "1-0"]
[ECO "D43"]
[WhiteElo "2332"]
[BlackElo "2082"]
[Annotator "NA"]
[PlyCount "85"]
[EventDate "2018.??.??"]
[EventType "swiss"]
[EventCountry "ISL"]
[SourceTitle "playchess.com"]
[Source "ChessBase"]
[SourceQuality "1"]
[TimeControl "40/5400+30:900+30"]

1. d4 {[%emt 0:03:01]} Nf6 {[%emt 0:00:01]} 2. c4 {[%emt 0:00:31]} e6 {[%emt 0:00:14]} 3. Nc3 {[%emt 0:00:21]} d5 {[%emt 0:00:20]} 4. Nf3 {[%emt 0:01:14]} c6 {[%emt 0:02:56]} 5. Bg5 {[%emt 0:01:08]} Be7 {[%emt 0:00:25]} 6. e3 {[%emt 0:00:07]} O-O {[%emt 0:00:10]} 7. a3 {[%emt 0:00:10]} Nbd7 {[%emt 0:01:11]} 8. Qc2 {[%emt 0:01:51]} b6 {[%emt 0:00:37]} 9. Bd3 {[%emt 0:01:02] D61: Queen's Gambit Declined: Classical: 7 Qc2} (9. cxd5 cxd5 10. Bd3 Bb7 11. O-O h6 12. Bf4 Rc8 13. Rfc1 a6 14. a4 Rc6 15. Qe2 Qa8 16. Nd2 Bb4 17. h3 Rfc8 18. Bb5 axb5 19. axb5 Rxc3 20. bxc3 {0-1 (40) Granda Zuniga,J (2636)-Adly,A (2630) Khanty-Mansiysk 2010}) 9... Bb7 {[%emt 0:00:45]} 10. O-O {[%emt 0:00:08]} dxc4 {[%emt 0:01:32]} 11. Bxc4 {[%emt 0:00:26]} c5 {[%emt 0:00:11]} 12. Rad1 {[%emt 0:02:00]} Qc8 $146 {[%emt 0:04:51]} ({Predecessor:} 12... Bxf3 13. gxf3 Nh5 14. Bxe7 Qxe7 15. d5 Ne5 16. Be2 Qh4 {1-0 (28) Berkvens,J (2467)-Span,P (2294) Dieren 2002}) 13. Ba2 {[%emt 0:01:50]} Rd8 {[%emt 0:00:53]} 14. Ne5 {[%emt 0:08:13]} cxd4 {[%emt 0:02:42]} 15. exd4 {[%emt 0:12:25]} Nxe5 {[%emt 0:03:41]} 16. dxe5 {[%emt 0:00:17]} Nd5 {[%emt 0:00:35]} 17. Bxe7 {[%emt 0:11:52]} Nxe7 {[%emt 0:01:37]} 18. Bb1 {[%emt 0:08:50]} g6 {[%emt 0:02:15]} 19. Qe2 {[%emt 0:09:31]} Qc7 {[%emt 0:05:21]} 20. Rc1 {[%emt 0:01:26]} Nc6 {[%emt 0:02:13]} 21. f4 {[%emt 0:00:21]} Nd4 {[%emt 0:05:52]} 22. Qf2 {[%emt 0:00:24]} Nb3 {[%emt 0:02:22]} 23. Nd5 {[%emt 0:09:22]} Qxc1 {[%emt 0:02:29]} 24. Nf6+ {[%emt 0:00:06]} Kg7 {[%emt 0:01:03]} 25. Rxc1 {[%emt 0:00:05]} Nxc1 {[%emt 0:01:09]} 26. Qh4 {[%emt 0:01:35]} Rd1+ {[%emt 0:02:12]} 27. Kf2 {[%emt 0:00:49]} Rd2+ {[%emt 0:12:35]} 28. Ke1 {[%emt 0:00:07]} Rad8 {[%emt 0:00:32]} 29. Qxh7+ {[%emt 0:02:02]} Kf8 {[%emt 0:00:11]} 30. Qh8+ {[%emt 0:00:03]} Ke7 {[%emt 0:00:08]} 31. Ng8+ {[%emt 0:00:04]} Rxg8 {[%emt 0:01:56]} 32. Qf6+ {[%emt 0:00:10]} Ke8 {[%emt 0:01:47]} 33. Kxd2 {[%emt 0:00:05]} Nb3+ {[%emt 0:00:15]} 34. Ke3 {[%emt 0:02:19]} Bxg2 {[%emt 0:00:36]} 35. Bc2 {[%emt 0:00:54]} Bd5 {[%emt 0:00:41]} 36. Bxb3 {[%emt 0:01:51]} Bxb3 {[%emt 0:00:08]} 37. h4 {[%emt 0:04:45]} Rf8 {[%emt 0:02:31]} 38. f5 {[%emt 0:01:54]} exf5 $2 {[%emt 0:00:40]} (38... Rg8 39. fxg6 fxg6) 39. Qc6+ {[%emt 0:00:06]} Ke7 $18 {[%emt 0:02:21]} 40. Qc7+ {[%emt 0:00:00]} Ke8 {[%emt 0:00:14]} 41. Qb8+ {[%emt 0:00:45]} Ke7 {[%emt 0:00:12]} 42. Qxa7+ {[%emt 0:00:07]} Ke8 {[%emt 0:00:38]} 43. Qxb6 {[%emt 0:00:30]} 1-0

[Event "Reykjavik Chess Congress 2018"]
[Site "Reykjavik"]
[Date "2018.02.04"]
[Round "8"]
[White "Olafsson, Thorvardur"]
[Black "Fridjonsson, Julius"]
[Result "1/2-1/2"]
[ECO "B33"]
[WhiteElo "2178"]
[BlackElo "2137"]
[Annotator "NA"]
[PlyCount "117"]
[EventDate "2018.??.??"]
[EventType "swiss"]
[EventCountry "ISL"]
[SourceTitle "playchess.com"]
[Source "ChessBase"]
[SourceQuality "1"]
[TimeControl "40/5400+30:900+30"]

1. e4 {[%emt 0:05:43]} c5 {[%emt 0:00:25]} 2. Nf3 {[%emt 0:00:39]} Nc6 {[%emt 0:00:05]} 3. d4 {[%emt 0:00:12]} cxd4 {[%emt 0:00:06]} 4. Nxd4 {[%emt 0:00:08]} Nf6 {[%emt 0:00:08]} 5. Nc3 {[%emt 0:00:12]} e6 {[%emt 0:00:11]} 6. Ndb5 {[%emt 0:00:46]} Bb4 {[%emt 0:00:11]} 7. a3 {[%emt 0:00:14]} Bxc3+ {[%emt 0:00:06]} 8. Nxc3 {[%emt 0:00:05]} d5 {[%emt 0:00:08]} 9. exd5 {[%emt 0:00:06]} exd5 {[%emt 0:00:04]} 10. Bd3 {[%emt 0:00:23]} d4 {[%emt 0:00:24]} 11. Ne2 {[%emt 0:01:16]} O-O {[%emt 0:00:24]} 12. O-O {[%emt 0:00:26]} Bg4 {[%emt 0:03:13]} 13. f3 {[%emt 0:02:06]} Bh5 {[%emt 0:00:48]} 14. b4 {[%emt 0:03:12] B45: Sicilian Four Knights} a5 $146 {[%emt 0:23:07]} ({Predecessor:} 14... Qb6 15. Rf2 Rad8 16. Bg5 Ne5 17. Ng3 Bg6 18. f4 Nxd3 19. cxd3 h6 20. Bxf6 Qxf6 21. f5 Bh7 {1-0 (35) Balogh,C (2648)-Petrov,M (2438) Porto Rio 2014}) 15. b5 {[%emt 0:09:33]} Ne5 {[%emt 0:00:56]} 16. Bb2 {[%emt 0:18:21]} Nxd3 {[%emt 0:01:37]} 17. Qxd3 {[%emt 0:04:17]} Bg6 {[%emt 0:00:35]} 18. Qxd4 {[%emt 0:00:45]} Bxc2 {[%emt 0:00:53]} 19. Qxd8 {[%emt 0:01:22]} Rfxd8 {[%emt 0:03:21]} 20. Bxf6 {[%emt 0:16:58]} gxf6 {[%emt 0:00:19]} 21. Rfc1 {[%emt 0:00:40]} Bd3 {[%emt 0:09:53]} 22. Nc3 {[%emt 0:00:49]} Rac8 {[%emt 0:02:28]} 23. Ne4 {[%emt 0:13:42]} Bxb5 {[%emt 0:09:07]} 24. Rxc8 {[%emt 0:02:34]} Rxc8 {[%emt 0:00:03]} 25. Nd6 {[%emt 0:01:47]} Rc5 {[%emt 0:06:06]} 26. Nxb7 {[%emt 0:00:19]} Rc2 {[%emt 0:00:14]} 27. Nxa5 {[%emt 0:02:03]} Ba4 {[%emt 0:00:12]} 28. Rb1 {[%emt 0:06:28]} Rc3 {[%emt 0:01:25]} 29. Rb8+ {[%emt 0:00:35]} Kg7 {[%emt 0:00:12]} 30. Ra8 {[%emt 0:00:35]} Rxa3 {[%emt 0:01:15]} 31. Nc4 {[%emt 0:00:41]} Ra1+ 32. Kf2 Ra2+ {[%emt 0:03:02]} 33. Kg3 {[%emt 0:00:49]} Bb3 {[%emt 0:00:06]} 34. Rxa2 {[%emt 0:00:09]} Bxa2 {[%emt 0:00:08]} 35. Nd6 {[%emt 0:01:24]} Kg6 {[%emt 0:01:27]} 36. Kf4 {[%emt 0:00:21]} Bb1 {[%emt 0:03:35]} 37. g4 {[%emt 0:03:32]} Bd3 {[%emt 0:01:05]} 38. Nc8 {[%emt 0:04:01]} h6 {[%emt 0:06:49]} 39. Ne7+ {[%emt 0:00:42]} Kg7 {[%emt 0:00:03]} 40. Nf5+ {[%emt 0:00:47]} Kg6 {[%emt 0:15:36]} 41. h4 {[%emt 0:00:53]} Bb5 {[%emt 0:04:48]} 42. h5+ {[%emt 0:06:09]} Kh7 {[%emt 0:00:02]} 43. Nd6 {[%emt 0:00:27]} Bc6 {[%emt 0:00:13]} 44. Nxf7 {[%emt 0:00:57]} Kg7 {[%emt 0:00:18]} 45. Nd6 {[%emt 0:00:22]} Bd7 {[%emt 0:00:34] [#]} 46. Nf5+ $1 {[%emt 0:01:53]} Kh7 {[%emt 0:00:02]} 47. Nd4 {[%emt 0:01:56]} Kg7 {[%emt 0:00:19] [#]} 48. Ke4 $1 {[%emt 0:01:55]} Bc8 {[%emt 0:00:16]} 49. Nf5+ {[%emt 0:02:03]} (49. Kd5 $142 Kf7 50. Ke4) 49... Kh7 $18 {[%emt 0:00:03]} 50. Nh4 {[%emt 0:01:57]} Kg7 {[%emt 0:00:14]} 51. Kd5 {[%emt 0:00:17]} Kf7 {[%emt 0:01:03]} 52. Nf5 {[%emt 0:01:48]} Bb7+ {[%emt 0:00:10]} 53. Kd6 {[%emt 0:00:16]} Bxf3 {[%emt 0:00:37]} 54. Nxh6+ {[%emt 0:00:07]} Kg7 {[%emt 0:00:50]} 55. Nf5+ {[%emt 0:00:04]} Kh7 {[%emt 0:02:26]} 56. Ne3 {[%emt 0:00:22]} Kh6 {[%emt 0:02:14]} 57. Ke6 {[%emt 0:00:51]} Bxg4+ {[%emt 0:00:13]} 58. Nxg4+ {[%emt 0:00:05]} Kxh5 {[%emt 0:00:13]} 59. Nxf6+ {[%emt 0:00:03]} 1/2-1/2

[Event "Reykjavik Chess Congress 2018"]
[Site "Reykjavik"]
[Date "2018.02.04"]
[Round "8"]
[White "Loftsson, Hrafn"]
[Black "Sigurdsson, Birkir Karl"]
[Result "1-0"]
[ECO "A20"]
[WhiteElo "2163"]
[BlackElo "1934"]
[Annotator "NA"]
[PlyCount "137"]
[EventDate "2018.??.??"]
[EventType "swiss"]
[EventCountry "ISL"]
[SourceTitle "playchess.com"]
[Source "ChessBase"]
[SourceQuality "1"]
[TimeControl "40/5400+30:900+30"]

1. c4 {[%emt 0:00:00]} e5 {[%emt 0:09:09]} 2. g3 {[%emt 0:00:00]} Nf6 {[%emt 0:00:11]} 3. Bg2 {[%emt 0:00:00]} Nc6 {[%emt 0:00:57]} 4. Nc3 {[%emt 0:00:26]} Bc5 {[%emt 0:00:34]} 5. Nf3 {[%emt 0:00:58]} d6 {[%emt 0:02:33]} 6. d3 {[%emt 0:00:54]} h6 {[%emt 0:01:22]} 7. O-O {[%emt 0:00:59]} O-O {[%emt 0:02:33]} 8. a3 {[%emt 0:00:58]} a5 {[%emt 0:02:13]} 9. e3 {[%emt 0:02:11]} Re8 {[%emt 0:01:49] A29: Englische Eröffnung (Vierspringer-Variante)} 10. b3 {[%emt 0:03:55]} Bg4 {[%emt 0:01:46]} (10... Bf5 11. Nd5 Be6 12. d4 exd4 13. exd4 Ba7 14. Ne3 d5 {½-½ (30) Navara,D (2638)-Sokolov,I (2657) Budva 2009}) 11. h3 {[%emt 0:04:46]} Bh5 {[%emt 0:01:01]} 12. Bb2 {[%emt 0:09:51]} Qd7 {[%emt 0:04:58]} 13. Nd5 {[%emt 0:02:34]} Nxd5 {[%emt 0:03:49]} 14. cxd5 {[%emt 0:00:06]} Bxf3 {[%emt 0:01:55]} 15. Bxf3 $146 {[%emt 0:08:53]} ({Vorgänger:} 15. Qxf3) 15... Ne7 {[%emt 0:00:55]} 16. Bg2 {[%emt 0:03:26]} c6 {[%emt 0:03:09]} 17. dxc6 {[%emt 0:02:06]} bxc6 {[%emt 0:00:35]} 18. d4 {[%emt 0:08:46]} exd4 {[%emt 0:01:38]} 19. Bxd4 {[%emt 0:01:45]} Bxd4 {[%emt 0:01:49]} 20. Qxd4 {[%emt 0:00:19]} Rab8 {[%emt 0:00:36]} 21. Rfd1 {[%emt 0:05:30]} d5 {[%emt 0:03:16]} 22. Rab1 {[%emt 0:02:17]} Nf5 {[%emt 0:07:16]} 23. Qc3 {[%emt 0:07:33]} Ra8 {[%emt 0:07:58] [#]} 24. e4 $1 {[%emt 0:05:11]} Ne7 {[%emt 0:01:27]} 25. Qc5 {[%emt 0:03:57]} Red8 {[%emt 0:02:35]} 26. Rd4 {[%emt 0:03:41]} Qa7 {[%emt 0:02:41]} 27. Rc1 {[%emt 0:01:14]} Qb7 {[%emt 0:01:49]} 28. Rcd1 {[%emt 0:02:54]} Qa7 {[%emt 0:03:25]} 29. Qxa7 {[%emt 0:04:11]} Rxa7 {[%emt 0:00:11]} 30. exd5 {[%emt 0:00:13]} cxd5 {[%emt 0:05:38]} 31. Bxd5 {[%emt 0:07:35]} Nxd5 {[%emt 0:01:01]} 32. Rxd5 {[%emt 0:00:04]} Rxd5 {[%emt 0:00:44]} 33. Rxd5 {[%emt 0:00:05]} Rb7 {[%emt 0:00:20]} 34. Rd3 {[%emt 0:00:11]} g5 {[%emt 0:01:27]} 35. Kf1 {[%emt 0:00:41]} Kg7 {[%emt 0:01:42]} 36. Ke2 {[%emt 0:00:08]} Kg6 {[%emt 0:00:24]} 37. Kd2 {[%emt 0:00:35]} f5 {[%emt 0:01:29]} 38. Kc3 {[%emt 0:02:00]} Rc7+ {[%emt 0:01:23]} 39. Kb2 {[%emt 0:00:38]} Rc6 {[%emt 0:00:59]} 40. b4 {[%emt 0:00:00]} axb4 {[%emt 0:00:36]} 41. axb4 $18 {[%emt 0:01:30]} f4 {[%emt 0:02:18]} 42. b5 {[%emt 0:07:04]} Rb6 {[%emt 0:00:31]} 43. Rb3 {[%emt 0:00:09]} Kf5 {[%emt 0:01:46]} 44. Kc3 {[%emt 0:00:39]} fxg3 {[%emt 0:02:53]} 45. fxg3 {[%emt 0:00:06]} Ke5 {[%emt 0:00:21]} 46. Kc4 {[%emt 0:00:12]} Kd6 {[%emt 0:00:15]} 47. Rd3+ {[%emt 0:00:52]} Kc7 {[%emt 0:00:14]} 48. Kc5 {[%emt 0:03:58]} Rf6 {[%emt 0:00:31]} 49. g4 {[%emt 0:01:33]} Re6 {[%emt 0:02:57]} 50. Rf3 {[%emt 0:02:48]} Re5+ {[%emt 0:02:41]} 51. Kc4 {[%emt 0:00:17]} Re6 {[%emt 0:00:29]} 52. Kd5 {[%emt 0:01:01]} Rd6+ {[%emt 0:03:58]} 53. Kc5 {[%emt 0:00:26]} Re6 {[%emt 0:00:14]} 54. b6+ {[%emt 0:02:43]} Kb8 {[%emt 0:00:51]} 55. Rf8+ {[%emt 0:00:08]} Kb7 {[%emt 0:00:06]} 56. Rf7+ {[%emt 0:00:04]} Kb8 {[%emt 0:00:15]} 57. Rh7 {[%emt 0:00:05]} Re5+ {[%emt 0:04:15]} 58. Kc6 {[%emt 0:00:25]} Re6+ {[%emt 0:00:13]} 59. Kb5 {[%emt 0:00:04]} Re1 {[%emt 0:01:40]} 60. Rxh6 {[%emt 0:01:29]} Rb1+ {[%emt 0:00:17]} 61. Kc6 {[%emt 0:00:17]} Rc1+ {[%emt 0:00:04]} 62. Kd5 {[%emt 0:00:52]} Kb7 {[%emt 0:00:15]} 63. Ke5 {[%emt 0:00:22]} Rf1 {[%emt 0:00:17]} 64. Rf6 {[%emt 0:00:35]} Rh1 {[%emt 0:00:13]} 65. Kf5 {[%emt 0:00:34]} Rxh3 {[%emt 0:00:12]} 66. Kxg5 {[%emt 0:00:04]} Rh1 {[%emt 0:00:11]} 67. Kg6 {[%emt 0:00:12]} Rg1 {[%emt 0:01:53]} 68. g5 {[%emt 0:00:04]} Rh1 {[%emt 0:00:09]} 69. Kg7 {[%emt 0:00:14]} 1-0

[Event "Reykjavik Chess Congress 2018"]
[Site "Reykjavik"]
[Date "2018.02.04"]
[Round "8"]
[White "Ingvason, Johann"]
[Black "Bjornsson, Eirikur K"]
[Result "1-0"]
[ECO "B56"]
[WhiteElo "2161"]
[BlackElo "1934"]
[Annotator "NA"]
[PlyCount "75"]
[EventDate "2018.??.??"]
[EventType "swiss"]
[EventCountry "ISL"]
[SourceTitle "playchess.com"]
[Source "ChessBase"]
[SourceQuality "1"]
[TimeControl "40/5400+30:900+30"]

1. e4 {[%emt 0:00:44]} c5 {[%emt 0:03:59]} 2. Nf3 {[%emt 0:00:06]} Nc6 {[%emt 0:00:14]} 3. d4 {[%emt 0:00:12]} cxd4 {[%emt 0:00:07]} 4. Nxd4 {[%emt 0:00:04]} Nf6 {[%emt 0:00:09]} 5. Nc3 {[%emt 0:02:41]} d6 {[%emt 0:00:19]} 6. h3 {[%emt 0:00:46]} e5 {[%emt 0:04:30]} 7. Nde2 {[%emt 0:01:00]} Be7 {[%emt 0:01:25] B56: Classical Sicilian: Unusual Lines} (7... Be6 8. Bg5 Be7 9. Bxf6 Bxf6 10. Nd5 Bxd5 11. Qxd5 O-O 12. c3 Ne7 13. Qb3 Qc7 14. g3 b5 15. Bg2 {½-½ (50) Escobar Forero,A (2482)-Bartholomew,J (2459) Charlotte 2018}) 8. g4 {[%emt 0:00:07]} Be6 {[%emt 0:00:39]} 9. Bg2 {[%emt 0:00:23]} a6 {[%emt 0:02:01]} 10. Be3 {[%emt 0:00:40]} b5 {[%emt 0:01:09]} 11. a3 {[%emt 0:00:51]} O-O $146 {[%emt 0:12:02]} ({Predecessor:} 11... Rc8 12. Qd2 Na5 13. b3 O-O 14. O-O h5 15. g5 Nd7 {1-0 (56) Sergievsky,V-Belov,L Saratov 1966}) 12. Ng3 {[%emt 0:02:57]} Na5 {[%emt 0:14:13]} 13. O-O {[%emt 0:02:21]} Nc4 {[%emt 0:05:17]} 14. Bc1 {[%emt 0:00:49]} Rc8 {[%emt 0:01:48]} 15. Qf3 {[%emt 0:06:35]} Ne8 {[%emt 0:08:48]} 16. Rd1 {[%emt 0:02:30]} Bg5 {[%emt 0:02:13]} 17. Bxg5 {[%emt 0:00:41]} Qxg5 {[%emt 0:02:22]} 18. b3 {[%emt 0:00:13]} Nb6 {[%emt 0:02:19]} 19. Rd3 {[%emt 0:00:24]} g6 {[%emt 0:02:52]} 20. Kh2 {[%emt 0:04:23]} Nd7 {[%emt 0:01:00]} 21. Rad1 {[%emt 0:03:57]} Ndf6 $11 {[%emt 0:06:18]} 22. Qe2 {[%emt 0:03:52]} Kg7 {[%emt 0:02:24]} 23. Kg1 {[%emt 0:00:52]} Rh8 {[%emt 0:02:13]} 24. Rf3 {[%emt 0:14:39]} Nxg4 {[%emt 0:07:07]} 25. hxg4 {[%emt 0:06:48]} Bxg4 {[%emt 0:00:15]} 26. Rdd3 {[%emt 0:00:18]} Qc1+ {[%emt 0:08:29]} 27. Bf1 {[%emt 0:00:48]} Qxa3 {[%emt 0:01:21]} 28. Rxf7+ {[%emt 0:00:38]} Kxf7 {[%emt 0:00:27]} 29. Qxg4 {[%emt 0:00:07]} Nf6 {[%emt 0:02:02]} 30. Rf3 {[%emt 0:00:26]} Kg7 {[%emt 0:02:45]} 31. Qg5 {[%emt 0:06:24]} Rhf8 32. Rxf6 {[%emt 0:00:35]} Rxc3 {[%emt 0:04:28]} 33. Nh5+ {[%emt 0:00:09]} Kg8 {[%emt 0:00:57]} 34. Rxf8+ {[%emt 0:07:51]} Kxf8 {[%emt 0:00:12]} 35. Qd8+ {[%emt 0:00:01]} Kf7 {[%emt 0:00:19]} 36. Qd7+ {[%emt 0:00:02]} Kf8 {[%emt 0:01:05]} 37. Qg7+ {[%emt 0:00:01]} Ke8 {[%emt 0:00:03]} 38. Nf6+ {[%emt 0:00:08]} 1-0

[Event "Reykjavik Chess Congress 2018"]
[Site "Reykjavik"]
[Date "2018.02.04"]
[Round "8"]
[White "Heimisson, Hilmir Freyr"]
[Black "Ptacnikova, Lenka"]
[Result "1-0"]
[ECO "A45"]
[WhiteElo "2136"]
[BlackElo "2218"]
[Annotator "NA"]
[PlyCount "83"]
[EventDate "2018.??.??"]
[EventType "swiss"]
[EventCountry "ISL"]
[SourceTitle "playchess.com"]
[Source "ChessBase"]
[SourceQuality "1"]
[TimeControl "40/5400+30:900+30"]

1. d4 {[%emt 0:02:19]} Nf6 {[%emt 0:00:58]} 2. Bf4 {[%emt 0:00:10]} d6 {[%emt 0:01:20]} 3. e3 {[%emt 0:01:26]} g6 {[%emt 0:04:59]} 4. Nf3 {[%emt 0:02:46]} Bg7 {[%emt 0:00:14]} 5. Be2 {[%emt 0:02:11]} O-O {[%emt 0:00:27]} 6. h3 {[%emt 0:00:38]} c6 {[%emt 0:10:28]} 7. O-O {[%emt 0:02:01]} Nbd7 {[%emt 0:02:01]} 8. c4 {[%emt 0:02:50]} Qe8 {[%emt 0:08:33]} 9. Nc3 {[%emt 0:04:34]} e5 {[%emt 0:01:55]} 10. Bh2 {[%emt 0:00:33]} h6 {[%emt 0:07:08] E61: King's Indian: Early deviations for White, including Smyslov System} (10... Qe7 11. Qc2 b6 12. b4 Bb7 13. c5 dxc5 14. bxc5 Ne8 15. cxb6 exd4 16. Nxd4 axb6 17. Rab1 c5 18. Bf3 cxd4 19. Bxb7 {0-1 (71) Tang,A (2466)-Shabalov,A (2563) chess.com INT 2017}) 11. Rc1 {[%emt 0:06:10]} Qe6 $146 {[%emt 0:11:03]} ({Find the theoretical novelty and annotate with similar games:} 11... Qe7 12. b4 Ne8 13. c5 dxc5 14. dxc5 f5 15. Re1 g5 16. Nd2 Kh8 17. Nc4 b6 18. cxb6 axb6 {1-0 (39) Istvandi,L (2285)-Bognar,C (2135) Budapest 1997}) 12. b4 {[%emt 0:12:47]} a6 {[%emt 0:10:02]} 13. Qb3 {[%emt 0:07:12]} Re8 {[%emt 0:05:39]} 14. Qb1 {[%emt 0:05:17]} e4 {[%emt 0:03:48]} 15. Nd2 {[%emt 0:00:31]} Nf8 {[%emt 0:03:47]} 16. Rfd1 {[%emt 0:08:55]} d5 {[%emt 0:02:49]} 17. Na4 {[%emt 0:03:48]} N6d7 {[%emt 0:01:11]} (17... N8d7 $16 {was called for.}) 18. Nb3 {[%emt 0:01:48]} Qe7 {[%emt 0:02:47]} 19. cxd5 {[%emt 0:11:13]} cxd5 {[%emt 0:01:15]} 20. Nbc5 {[%emt 0:00:23]} b5 {[%emt 0:03:42]} 21. Nc3 {[%emt 0:06:18]} Nb6 {[%emt 0:00:57]} 22. a4 {[%emt 0:00:35]} bxa4 {[%emt 0:00:21]} 23. Qa2 {[%emt 0:02:28]} Bb7 {[%emt 0:05:13]} 24. N3xa4 {[%emt 0:01:54]} Nxa4 {[%emt 0:00:21]} 25. Qxa4 {[%emt 0:00:44]} Ne6 {[%emt 0:00:42]} 26. Nxe6 {[%emt 0:01:51]} Qxe6 {[%emt 0:00:24]} 27. Rc7 {[%emt 0:00:29]} Re7 {[%emt 0:01:36]} 28. Rdc1 {[%emt 0:00:07]} Rc8 {[%emt 0:01:37]} 29. Rxc8+ {[%emt 0:04:35]} Bxc8 {[%emt 0:00:04]} 30. Rc6 {[%emt 0:00:41]} Qd7 {[%emt 0:00:47]} 31. Bxa6 {[%emt 0:02:08]} Bb7 {[%emt 0:04:41]} 32. Bxb7 {[%emt 0:01:07]} Qxb7 {[%emt 0:00:04]} 33. b5 {[%emt 0:01:16]} Re8 {[%emt 0:00:19]} 34. Qb3 {[%emt 0:01:22]} Ra8 {[%emt 0:00:25]} 35. Bc7 {[%emt 0:01:38]} Rc8 {[%emt 0:00:24]} 36. Qxd5 {[%emt 0:00:17]} Rxc7 {[%emt 0:01:15]} 37. Qd8+ {[%emt 0:00:07]} Bf8 {[%emt 0:00:33]} 38. Rxc7 {[%emt 0:00:16]} Qxb5 {[%emt 0:00:03]} 39. Rc8 {[%emt 0:00:52]} Qb1+ {[%emt 0:00:14]} 40. Kh2 {[%emt 0:00:00]} Qb4 {[%emt 0:00:02]} 41. Kg3 $18 {[%emt 0:01:21]} (41. Qf6 $142 Qb7 42. Rd8 Qc7+ 43. g3 Qxd8 44. Qxd8) 41... Kg7 {[%emt 0:00:11]} 42. Qxf8+ {[%emt 0:00:20]} 1-0

[Event "Reykjavik Chess Congress 2018"]
[Site "Reykjavik"]
[Date "2018.02.04"]
[Round "8"]
[White "Birkisson, Bjorn Holm"]
[Black "Jensson, Einar Hjalti"]
[Result "1/2-1/2"]
[ECO "B41"]
[WhiteElo "2084"]
[BlackElo "2336"]
[Annotator "NA"]
[PlyCount "53"]
[EventDate "2018.??.??"]
[EventType "swiss"]
[EventCountry "ISL"]
[SourceTitle "playchess.com"]
[Source "ChessBase"]
[SourceQuality "1"]
[TimeControl "40/5400+30:900+30"]

1. e4 {[%emt 0:03:41]} c5 {[%emt 0:01:17]} 2. Nf3 {[%emt 0:02:42]} e6 {[%emt 0:01:15]} 3. d4 {[%emt 0:00:26]} cxd4 {[%emt 0:00:04]} 4. Nxd4 {[%emt 0:00:04]} a6 {[%emt 0:02:37]} 5. c4 {[%emt 0:03:22]} Nc6 {[%emt 0:02:15]} 6. Nxc6 {[%emt 0:02:48] B28: Sicilian: 2 Nf3 a6 (O'Kelly Variation)} (6. Nc3 Bb4 7. Be3 Nf6 8. Bd3 Qc7 9. Rc1 b6 10. O-O Nxd4 11. Bxd4 Bc5 12. Be2 Bb7 13. Qd3 Bxd4 14. Qxd4 Qc5 15. Qd3 Bc6 16. a3 {1-0 (42) Dominguez Perez,L (2719)-Polgar,J (2680) Moscow 2009}) 6... bxc6 {[%emt 0:02:18]} 7. Nc3 {[%emt 0:00:41]} c5 {[%emt 0:03:05]} 8. Be2 $146 {[%emt 0:01:40]} ({Predecessor:} 8. Bd3 Ne7 9. O-O g6 10. f4 Bg7 11. f5 Bd4+ 12. Kh1 Bb7 13. fxe6 dxe6 14. Qf3 {1-0 (24) Hollan,M (2283)-Strakos,T (1730) Prague 2015}) 8... Ne7 {[%emt 0:01:52]} 9. Be3 {[%emt 0:09:58]} Nc6 {[%emt 0:00:42]} 10. O-O {[%emt 0:02:45]} Be7 {[%emt 0:00:13]} 11. f4 {[%emt 0:00:31]} O-O {[%emt 0:00:28]} 12. e5 {[%emt 0:03:00]} Qb6 {[%emt 0:04:57]} 13. Na4 {[%emt 0:06:12]} Qc7 {[%emt 0:12:06]} 14. Qe1 {[%emt 0:22:01]} Rb8 {[%emt 0:19:34]} 15. Qf2 {[%emt 0:01:45]} f6 {[%emt 0:02:07]} 16. exf6 {[%emt 0:07:15]} ({Reject} 16. Nxc5 fxe5 17. Na4 exf4 $17) 16... Rxf6 {[%emt 0:00:50]} 17. Bxc5 {[%emt 0:00:38]} Bxc5 {[%emt 0:00:22]} 18. Qxc5 {[%emt 0:00:18]} Rxf4 {[%emt 0:00:22]} 19. Bd3 {[%emt 0:04:21]} Qe5 $16 {[%emt 0:04:32]} 20. Rxf4 {[%emt 0:06:09]} Qxf4 {[%emt 0:00:02]} 21. Qh5 {[%emt 0:00:29]} g6 {[%emt 0:01:27]} 22. Bxg6 {[%emt 0:01:26]} Qd4+ {[%emt 0:00:09]} 23. Kh1 {[%emt 0:00:03]} hxg6 {[%emt 0:00:23]} 24. Qxg6+ {[%emt 0:00:04]} Qg7 {[%emt 0:00:03]} 25. Qe8+ {[%emt 0:00:10]} Qf8 {[%emt 0:00:05]} 26. Qg6+ {[%emt 0:00:09]} Qg7 {[%emt 0:00:51]} 27. Qe8+ {[%emt 0:00:10]} 1/2-1/2